fUST/lending_fUST_20240523
["ID","MTS","AMOUNT","RATE_DAILY","PERIOD"]
[327758879,1716434837119,-400.83138746,0.00019178,7]
[327758880,1716434837139,-229.925959,0.00019178,2]
[327758881,1716434837163,-159.906368,0.00019412,2]
[327758882,1716434837189,-159.906368,0.00019412,2]
[327758883,1716434837212,-151.0,0.00019412,2]
[327758884,1716434837234,-1280.86317527,0.00019485,2]
[327758885,1716434837254,-255.37705747,0.000199,2]
[327758886,1716434837274,-255.37705745,0.000199,2]
[327758887,1716434837293,-255.37705745,0.000199,2]
[327758888,1716434837314,-17504.00618029,0.0002,11]
[327758889,1716434837334,-187.79670765,0.0002,4]
[327758890,1716434837356,-31520.79413093,0.0002,2]
[327758891,1716434838465,-151.671039,0.00019178,2]
[327758892,1716434838485,-41343.86813936,0.0002,2]
[327758893,1716434838504,-154.93802479,0.0002,2]
[327758894,1716434838523,-154.93802479,0.0002,2]
[327758895,1716434838542,-155.45791053,0.0002,2]
[327758896,1716434838562,-400.0,0.0002,2]
[327758897,1716434838581,-151.0,0.0002,2]
[327758898,1716434838601,-151.0,0.0002,2]
[327758899,1716434838621,-159.906368,0.0002,2]
[327758900,1716434838642,-159.906368,0.0002,2]
[327758901,1716434838663,-262.688806,0.0002,2]
[327758902,1716434838682,-151.0,0.0002,2]
[327758903,1716434838702,-178.731156,0.0002,2]
[327758904,1716434838721,-151.0,0.0002,2]
[327758905,1716434838741,-151.0,0.0002,2]
[327758906,1716434838763,-151.0,0.0002,2]
[327758907,1716434838784,-151.0,0.0002,2]
[327758908,1716434838805,-151.0,0.0002,2]
[327758909,1716434838824,-151.0,0.0002,2]
[327758910,1716434838845,-4694.88024875,0.00021,2]
[327758911,1716434838866,-280.0,0.00021,2]
[327758912,1716434838884,-2067.06566948,0.00021,2]
[327758913,1716434838904,-513.05973911,0.00021,2]
[327758914,1716434838924,-200.0,0.0002137,2]
[327758915,1716434838946,-397.8,0.00021507,3]
[327758916,1716434838967,-151.0,0.00021507,3]
[327758917,1716434838987,-294.64124,0.00021918,2]
[327758918,1716434839007,-294.64124,0.00021918,2]
[327758919,1716434839026,-166.666666,0.00021918,2]
[327758920,1716434839045,-3038.8323048,0.00021918,2]
[327758921,1716434839066,-151.0,0.00021918,2]
[327758922,1716434839086,-294.64124,0.00021918,2]
[327758923,1716434839104,-155.0,0.00022,2]
[327758924,1716434839125,-159.70333977,0.00022,2]
[327758925,1716434839146,-1280.86317527,0.00022203,2]
[327758926,1716434839166,-658.51161769,0.00022264,2]
[327758927,1716434839192,-5298.18473217,0.000223,6]
[327758928,1716434839215,-151.0,0.000223,2]
[327758929,1716434839235,-178.731156,0.000223,2]
[327758930,1716434839256,-151.0,0.000223,2]
[327758931,1716434839275,-186.083204,0.000223,2]
[327758932,1716434839294,-166.666666,0.00022431,2]
[327758933,1716434839313,-397.8,0.0002259,3]
[327758934,1716434839334,-151.0,0.0002259,3]
[327758935,1716434839355,-166.666666,0.00022944,2]
[327758936,1716434839374,-155.48525777,0.00023,2]
[327758937,1716434839394,-41417.83138751,0.00023,2]
[327758938,1716434842088,-18677.05961249,0.00023,2]
[327758939,1716434842108,-151.0,0.00023,2]
[327758940,1716434842128,-151.0,0.00023,2]
[327758941,1716434842149,-151.0,0.00023,2]
[327758942,1716434842173,-151.0,0.00023,2]
[327758943,1716434842193,-443.0,0.000231,2]
[327758944,1716434842213,-621.92558088,0.00023377,2]
[327758945,1716434842234,-151.0,0.00023377,2]
[327758946,1716434842255,-166.666666,0.00023456,2]
[327758947,1716434842275,-397.8,0.00023674,3]
[327758948,1716434842295,-151.0,0.00023674,3]
[327758949,1716434842315,-159.906368,0.00023744,2]
[327758950,1716434842337,-159.906368,0.00023744,2]
[327758951,1716434842359,-616.9877838,0.000239,2]
[327758952,1716434842380,-166.666666,0.00023969,2]
[327758953,1716434842400,-187.27867909,0.00024,2]
[327758954,1716434842425,-425.086305,0.00024384,2]
[327758955,1716434842446,-163.73318,0.00024384,2]
[327758956,1716434842467,-151.0,0.00024384,2]
[327758957,1716434842488,-150.93962415,0.00024401,4]
[327758958,1716434842514,-166.666666,0.00024482,2]
[327758959,1716434842534,-620.09627904,0.00024546,2]
[327758960,1716434842557,-380.0,0.00024658,2]
[327758961,1716434842578,-397.8,0.00024757,5]
[327758962,1716434842600,-150.93962415,0.00024899,2]
[327758963,1716434842622,-1280.86317527,0.0002492,2]
[327758964,1716434842642,-583.57753635,0.00025,2]
[327758965,1716434842664,-894.71433362,0.00025,2]
[327758966,1716434842684,-167.4232435,0.00025,2]
[327758967,1716434842704,-400.71262343,0.00025,2]
[327758968,1716434842724,-363.71859981,0.00025,2]
[327758969,1716434842744,-620.00481395,0.00025774,2]
[327758970,1716434842765,-397.8,0.0002584,5]
[327758971,1716434842790,-651.58580265,0.00025999,2]
[327758972,1716434842816,-651.58580265,0.00025999,2]
[327758973,1716434842839,-651.58580265,0.00025999,2]
[327758974,1716434842864,-651.58580265,0.00025999,2]
[327758975,1716434842889,-651.58580265,0.00025999,2]
[327758976,1716434842915,-651.58580265,0.00025999,2]
[327758977,1716434842935,-151.0,0.00025999,2]
[327758978,1716434842956,-294.64124,0.00025999,2]
[327758979,1716434842976,-6897.24760705,0.00026,2]
[327758980,1716434842996,-228.393426,0.00026,2]
[327758981,1716434843017,-294.64124,0.00026,2]
[327758982,1716434843036,-151.0,0.00026,2]
[327758983,1716434843056,-395.27580104,0.0002673,3]
[327758984,1716434843077,-159.906368,0.00026803,2]
[327758985,1716434843098,-159.906368,0.00026803,2]
[327758986,1716434843118,-600.0,0.0002688,2]
[327758987,1716434843138,-585.56014853,0.000269,2]
[327758988,1716434843158,-151.0,0.000269,2]
[327758989,1716434843183,-151.0,0.000269,2]
[327758990,1716434843203,-179.551355,0.000269,2]
[327758991,1716434843338,-397.8,0.00026924,5]
[327758992,1716434843360,-296.80432664,0.00026953,2]
[327758993,1716434843380,-155.00775523,0.00026998,2]
[327758994,1716434843400,-155.29750721,0.00026998,2]
[327758995,1716434843423,-500.0,0.00026998,120]
[327758996,1716434843443,-500.0,0.00026998,120]
[327758997,1716434843465,-520.73,0.00026998,120]
[327758998,1716434843485,-500.0,0.00026998,120]
[327758999,1716434843506,-587.56,0.00026998,120]
[327759000,1716434843526,-500.0,0.00026998,120]
[327759001,1716434843546,-500.0,0.00026998,120]
[327759002,1716434843565,-500.0,0.00026998,120]
[327759003,1716434843586,-500.0,0.00026998,120]
[327759004,1716434843607,-318.17,0.00026998,120]
[327759005,1716434843628,-151.0,0.00026998,2]
[327759006,1716434843649,-151.0,0.00026998,2]
[327759007,1716434843672,-151.0,0.00026998,2]
[327759008,1716434843692,-1933.74004357,0.00026999,2]
[327759009,1716434843712,-64959.8500393,0.00027,2]
[327759010,1716434844143,-21500.73979504,0.00027,2]
[327759011,1716434844167,-190.56382775,0.00027,2]
[327759012,1716434844189,-456.49011547,0.00027,2]
[327759013,1716434844211,-191.917566,0.00027,2]
[327759014,1716434844232,-281.0,0.00027,2]
[327759015,1716434844255,-294.64124,0.00027,2]
[327759016,1716434844277,-151.0,0.00027,2]
[327759017,1716434844298,-159.906368,0.00027,2]
[327759018,1716434844320,-159.906368,0.00027,2]
[327759019,1716434844340,-151.0,0.00027,2]
[327759020,1716434844361,-151.0,0.00027,2]
[327759021,1716434844382,-151.0,0.00027,2]
[327759022,1716434844402,-151.0,0.00027,2]
[327759023,1716434844424,-151.0,0.00027,2]
[327759024,1716434844445,-151.0,0.00027,2]
[327759025,1716434844466,-600.0,0.0002716,2]
[327759026,1716434844485,-1136.59312053,0.0002739,2]
[327759027,1716434844506,-500.0,0.00027397,2]
[327759028,1716434844526,-500.0,0.00027397,2]
[327759029,1716434844545,-500.0,0.00027397,2]
[327759030,1716434844565,-500.0,0.00027397,2]
[327759031,1716434844584,-500.0,0.00027397,2]
[327759032,1716434844605,-500.0,0.00027397,2]
[327759033,1716434844625,-500.0,0.00027397,2]
[327759034,1716434844646,-500.0,0.00027397,2]
[327759035,1716434844668,-612.7034515,0.00027397,2]
[327759036,1716434844688,-500.0,0.00027397,2]
[327759037,1716434844708,-500.0,0.00027397,2]
[327759038,1716434844728,-500.0,0.00027397,2]
[327759039,1716434844748,-500.0,0.00027397,2]
[327759040,1716434844768,-504.19983247,0.00027397,2]
[327759041,1716434844788,-500.0,0.00027397,2]
[327759042,1716434844809,-500.0,0.00027397,2]
[327759043,1716434844829,-500.0,0.00027397,2]
[327759044,1716434844850,-500.0,0.00027397,2]
[327759045,1716434844870,-500.0,0.00027397,2]
[327759046,1716434844890,-500.0,0.00027397,2]
[327759047,1716434844912,-499.99999999,0.00027397,2]
[327759048,1716434844933,-500.0,0.00027397,2]
[327759049,1716434844953,-500.0,0.00027397,2]
[327759050,1716434844974,-500.0,0.00027397,2]
[327759051,1716434844994,-374.55209958,0.00027397,2]
[327759052,1716434845015,-237.69562771,0.00027397,2]
[327759053,1716434845035,-1000.0,0.00027397,5]
[327759054,1716434845056,-1000.0,0.00027397,6]
[327759055,1716434845076,-1000.0,0.00027397,7]
[327759056,1716434845098,-1000.0,0.00027397,8]
[327759057,1716434845118,-1022.95944534,0.00027397,9]
[327759058,1716434845140,-151.0,0.00027397,2]
[327759059,1716434845164,-151.0,0.00027397,2]
[327759060,1716434845189,-151.0,0.00027397,2]
[327759061,1716434845213,-151.0,0.00027397,2]
[327759062,1716434845358,-151.0,0.00027397,2]
[327759063,1716434845382,-278.223756,0.00027397,2]
[327759064,1716434845404,-204.17851931,0.00027397,10]
[327759065,1716434845429,-154.99780669,0.000274,2]
[327759066,1716434845449,-604.07457083,0.0002744,2]
[327759067,1716434845470,-151.0,0.0002744,2]
[327759068,1716434845491,-1000.0,0.000275,2]
[327759069,1716434845512,-400.0,0.000275,2]
[327759070,1716434845534,-151.0,0.000275,2]
[327759071,1716434845554,-1280.86317527,0.00027638,2]
[327759072,1716434845576,-150.93962415,0.00027665,2]
[327759073,1716434845598,-250.39072371,0.00027665,2]
[327759074,1716434845619,-3028.09150096,0.000278,7]
[327759075,1716434845640,-183.669306,0.000278,2]
[327759076,1716434845666,-159.906368,0.000278,2]
[327759077,1716434845688,-159.90636092,0.000278,2]
[327759078,1716434845709,-151.0,0.000278,2]
[327759079,1716434845732,-151.0,0.000278,2]
[327759080,1716434845753,-243.419412,0.000278,2]
[327759081,1716434845774,-22557.15399878,0.00027827,2]
[327759082,1716434853130,-6408.20729064,0.00018,7]
[327759083,1716434853151,-151.0,0.00019178,2]
[327759084,1716434853176,-151.0,0.00019178,2]
[327759085,1716434853197,-151.0,0.0002,2]
[327759086,1716434853218,-206.248868,0.00021918,2]
[327759087,1716434853239,-206.248868,0.00021918,2]
[327759088,1716434853262,-206.248868,0.00021918,2]
[327759089,1716434853283,-206.248868,0.00021918,2]
[327759090,1716434853302,-151.0,0.00023,2]
[327759091,1716434853322,-206.248868,0.00023,2]
[327759092,1716434853343,-151.0,0.00026998,2]
[327759093,1716434853363,-206.248868,0.00026998,2]
[327759094,1716434853383,-151.0,0.00027,2]
[327759095,1716434853403,-206.248868,0.00027,2]
[327759096,1716434853427,-45292.51258296,0.00027397,11]
[327759097,1716434853449,-151.0,0.000278,2]
[327759098,1716434853470,-206.248868,0.000278,2]
[327759099,1716434853490,-8511.62140403,0.00027827,2]
[327759100,1716434853510,-156.65676,0.00027827,2]
[327759101,1716434853531,-151.0,0.00027827,2]
[327759102,1716434853552,-194.118092,0.00027827,2]
[327759103,1716434853573,-206.248868,0.00027827,2]
[327759104,1716434853593,-19853.34946774,0.0002789,2]
[327759105,1716434853613,-15091.15,0.0002799,3]
[327759106,1716434853633,-312.98702464,0.00027997,2]
[327759107,1716434853652,-245.68092165,0.00027998,2]
[327759108,1716434853673,-395.37013077,0.00027998,2]
[327759109,1716434853693,-8752.00309014,0.00028,11]
[327759110,1716434853728,-139195.40001501,0.00028,4]
[327759111,1716434853752,-225.04774495,0.00028,2]
[327759112,1716434853773,-5550.77576118,0.00028,4]
[327759113,1716434853795,-294.0,0.00028,2]
[327759114,1716434853818,-151.0,0.00028,2]
[327759115,1716434853840,-206.248868,0.00028,2]
[327759116,1716434853862,-397.8,0.00028007,7]
[327759117,1716434853884,-301.8792483,0.0002813,4]
[327759118,1716434853906,-305.2,0.000284,2]
[327759119,1716434853930,-603.7584966,0.00028603,7]
[327759120,1716434853952,-70154.61592321,0.0002877,2]
[327759121,1716434853976,-151.0,0.0002877,2]
[327759122,1716434853999,-206.248868,0.0002877,2]
[327759123,1716434854021,-616.9877838,0.000289,2]
[327759124,1716434854042,-431.21276858,0.00029,2]
[327759125,1716434854064,-166.92714914,0.00029084,4]
[327759126,1716434854088,-397.8,0.00029091,7]
[327759127,1716434854111,-1207.5169932,0.00029327,30]
[327759128,1716434854135,-300.0,0.000294,2]
[327759129,1716434854157,-2000.0,0.000295,2]
[327759130,1716434854184,-151.0,0.00029731,2]
[327759131,1716434854208,-500.0,0.0003,4]
[327759132,1716434854233,-7723.22896531,0.0003,10]
[327759133,1716434854257,-1998.87249762,0.0003,2]
[327759134,1716434854279,-32789.67505575,0.0003,2]
[327759135,1716434854306,-165.67939859,0.0003,4]
[327759136,1716434854327,-465.73215826,0.0003,30]
[327759137,1716434854348,-214.30361979,0.0003,4]
[327759138,1716434854368,-154.7215003,0.0003,2]
[327759139,1716434854389,-2614.07860152,0.0003,10]
[327759140,1716434854410,-3485.63980794,0.0003,2]
[327759141,1716434854435,-193.58080345,0.0003,4]
[327759142,1716434854457,-279.03007445,0.0003,2]
[327759143,1716434854479,-170.0,0.0003,10]
[327759144,1716434854500,-300.0,0.0003,2]
[327759145,1716434854521,-204.0,0.0003,2]
[327759146,1716434854544,-7648.73,0.00030136,6]
[327759147,1716434854568,-7648.73,0.00030136,6]
[327759148,1716434854592,-7648.73,0.00030136,6]
[327759149,1716434854615,-7648.73,0.00030136,6]
[327759150,1716434854638,-7648.73,0.00030136,6]
[327759151,1716434854661,-7648.73,0.00030136,6]
[327759152,1716434854686,-7648.73,0.00030136,6]
[327759153,1716434854713,-7648.73,0.00030136,6]
[327759154,1716434854876,-7648.73,0.00030136,6]
[327759155,1716434854899,-7648.73,0.00030136,6]
[327759156,1716434854922,-7648.73,0.00030136,6]
[327759157,1716434854943,-7648.73,0.00030136,6]
[327759158,1716434854964,-7648.73,0.00030136,6]
[327759159,1716434854986,-7648.73,0.00030136,6]
[327759160,1716434855008,-7648.73,0.00030136,6]
[327759161,1716434855030,-7648.73,0.00030136,6]
[327759162,1716434855051,-7648.73,0.00030136,6]
[327759163,1716434855072,-506.865275,0.00030137,2]
[327759164,1716434855093,-506.865275,0.00030137,2]
[327759165,1716434855114,-506.865275,0.00030137,2]
[327759166,1716434855136,-506.865275,0.00030137,2]
[327759167,1716434855157,-397.8,0.00030174,7]
[327759168,1716434855183,-425.086305,0.0003031,2]
[327759169,1716434855205,-1280.86317527,0.00030355,2]
[327759170,1716434855228,-7648.73,0.00030399,6]
[327759171,1716434855249,-300.0,0.000304,3]
[327759172,1716434855274,-383.3868,0.00030543,30]
[327759173,1716434855295,-160.0,0.00030599,5]
[327759174,1716434855317,-306.0,0.0003063,2]
[327759175,1716434855338,-1000.0,0.00031,2]
[327759176,1716434855358,-300.0,0.00031,2]
[327759177,1716434855377,-386.79107633,0.00031,2]
[327759178,1716434855403,-386.79107633,0.00031,2]
[327759179,1716434855425,-386.79107633,0.00031,2]
[327759180,1716434855446,-386.79107633,0.00031,2]
[327759181,1716434855467,-386.79107633,0.00031,2]
[327759182,1716434855488,-386.79107633,0.00031,2]
[327759183,1716434855513,-386.79107633,0.00031,2]
[327759184,1716434855537,-386.79107633,0.00031,2]
[327759185,1716434855558,-386.79107633,0.00031,2]
[327759186,1716434855578,-386.79107633,0.00031,2]
[327759187,1716434855598,-386.79107633,0.00031,2]
[327759188,1716434855619,-386.79107633,0.00031,2]
[327759189,1716434855641,-386.79107633,0.00031,2]
[327759190,1716434855667,-386.79107633,0.00031,2]
[327759191,1716434855688,-386.79107633,0.00031,2]
[327759192,1716434855708,-386.79107633,0.00031,2]
[327759193,1716434855728,-386.79107633,0.00031,2]
[327759194,1716434855748,-386.79107633,0.00031,2]
[327759195,1716434855768,-386.79107633,0.00031,2]
[327759196,1716434855788,-386.79107,0.00031,2]
[327759197,1716434855810,-397.8,0.00031257,7]
[327759198,1716434855832,-160.0,0.00031264,3]
[327759199,1716434855851,-300.0,0.000314,4]
[327759200,1716434855872,-117811.97086288,0.0003143,8]
[327759201,1716434855895,-160.0,0.00031503,4]
[327759202,1716434855917,-160.0,0.00031742,5]
[327759203,1716434855937,-160.0,0.00031981,6]
[327759204,1716434855959,-7648.73,0.00031997,6]
[327759205,1716434855979,-3324.74771706,0.00031998,2]
[327759240,1716435033455,-2715.0,0.0002,2]
[327759256,1716435038361,-1445.06600862,0.0002,2]
[327759257,1716435038371,-151.0,0.00021563,3]
[327759258,1716435038380,-206.248868,0.00021918,2]
[327759260,1716435038390,-206.248868,0.00021918,2]
[327759261,1716435038399,-151.0,0.00022641,3]
[327759263,1716435038409,-206.248868,0.00023,2]
[327759265,1716435038419,-151.0,0.0002372,3]
[327759266,1716435038429,-152.0,0.0002427,6]
[327759267,1716435038439,-151.0,0.00024798,5]
[327759268,1716435038448,-166.666666,0.00025104,2]
[327759269,1716435038458,-166.666666,0.00025789,2]
[327759270,1716435038468,-151.0,0.00025876,5]
[327759271,1716435038477,-338.56740925,0.00026074,2]
[327759272,1716435038486,-166.666666,0.00026473,2]
[327759273,1716435038496,-206.248868,0.00026998,2]
[327759274,1716435038506,-206.248868,0.00027,2]
[327759275,1716435038515,-166.666666,0.00027157,2]
[327759276,1716435038525,-1137.22291442,0.0002739,2]
[327759277,1716435038535,-206.248868,0.000278,2]
[327759278,1716435038544,-206.248868,0.00027827,2]
[327759279,1716435038554,-166.666666,0.00027842,2]
[327759280,1716435038563,-6897.24760705,0.0002797,2]
[327759281,1716435038573,-2067.06566948,0.00027998,2]
[327759282,1716435038584,-206.248868,0.00028,2]
[327759283,1716435038593,-166.666666,0.00028526,2]
[327759284,1716435038603,-206.248877,0.0002877,2]
[327759285,1716435038613,-4694.12603955,0.00029999,2]
[327759286,1716435038625,-0.7542092,0.00029999,2]
[327759287,1716435038635,-964.32195468,0.0003,2]
[327759288,1716435038647,-17253.95865399,0.0003,2]
[327759289,1716435038657,-187.0,0.0003,2]
[327759290,1716435038667,-253.89104491,0.00030091,2]
[327759291,1716435038677,-1593.49,0.00030136,6]
[327759292,1716435038687,-1593.49,0.00030136,6]
[327759293,1716435038696,-1593.49,0.00030136,6]
[327759294,1716435038706,-1593.49,0.00030136,6]
[327759295,1716435038715,-1593.49,0.00030136,6]
[327759296,1716435038725,-1593.49,0.00030136,6]
[327759297,1716435038735,-1593.49,0.00030136,6]
[327759298,1716435038745,-1593.49,0.00030136,6]
[327759299,1716435038756,-1593.49,0.00030136,6]
[327759300,1716435038767,-1593.49,0.00030136,6]
[327759301,1716435038777,-1593.49,0.00030136,6]
[327759302,1716435038788,-1593.49,0.00030136,6]
[327759303,1716435038799,-1593.49,0.00030136,6]
[327759304,1716435038810,-1593.49,0.00030136,6]
[327759305,1716435038820,-1593.49,0.00030136,6]
[327759306,1716435038833,-1593.49,0.00030136,6]
[327759307,1716435038843,-1593.49,0.00030136,6]
[327759308,1716435038852,-1593.49,0.00030136,6]
[327759309,1716435038862,-1593.49,0.00030136,6]
[327759310,1716435038872,-1593.49,0.0003057,6]
[327759311,1716435038882,-1593.49,0.0003057,6]
[327759312,1716435038892,-1593.49,0.0003057,6]
[327759313,1716435038904,-1593.49,0.0003057,6]
[327759314,1716435038916,-1593.57132625,0.0003057,6]
[327759315,1716435038926,-363.65821844,0.00031472,2]
[327759316,1716435038936,-355.74822093,0.00031678,3]
[327759317,1716435038947,-355.74822093,0.00031678,3]
[327759318,1716435038957,-2131.77316563,0.00031703,2]
[327759319,1716435038969,-155.44455804,0.00031704,2]
[327759320,1716435038979,-363.65821844,0.00031735,2]
[327759321,1716435038988,-13344.49,0.00031938,3]
[327759322,1716435038997,-466.73377855,0.00031947,2]
[327759323,1716435039007,-386.869139,0.00031947,2]
[327759324,1716435039018,-405.44433636,0.00031947,2]
[327759325,1716435039028,-500.0,0.00031947,2]
[327759326,1716435039038,-435.61365282,0.00031947,2]
[327759327,1716435039048,-500.0,0.00031947,2]
[327759328,1716435039059,-500.0,0.00031947,2]
[327759329,1716435039069,-500.0,0.00031947,2]
[327759330,1716435039080,-500.0,0.00031947,2]
[327759331,1716435039089,-482.17006637,0.00031947,2]
[327759332,1716435039099,-500.0,0.00031947,2]
[327759333,1716435039109,-616.38336804,0.00031947,2]
[327759334,1716435039118,-500.0,0.00031947,2]
[327759335,1716435039128,-500.0,0.00031947,2]
[327759336,1716435039138,-500.0,0.00031947,2]
[327759337,1716435039148,-500.0,0.00031947,2]
[327759338,1716435039158,-500.0,0.00031947,2]
[327759339,1716435039168,-500.0,0.00031947,2]
[327759340,1716435039178,-500.0,0.00031947,2]
[327759341,1716435039188,-476.37283801,0.00031947,2]
[327759342,1716435039198,-500.0,0.00031947,2]
[327759343,1716435039208,-463.62557961,0.00031947,2]
[327759344,1716435039218,-500.0,0.00031947,2]
[327759345,1716435039229,-500.0,0.00031947,2]
[327759346,1716435039243,-500.0,0.00031947,2]
[327759347,1716435039252,-500.0,0.00031947,2]
[327759348,1716435039263,-500.0,0.00031947,2]
[327759349,1716435039272,-500.0,0.00031947,2]
[327759350,1716435039282,-500.0,0.00031947,2]
[327759351,1716435039292,-500.0,0.00031947,2]
[327759352,1716435039302,-500.0,0.00031947,2]
[327759353,1716435039315,-500.0,0.00031947,2]
[327759354,1716435039326,-500.0,0.00031947,2]
[327759355,1716435039337,-500.0,0.00031947,2]
[327759356,1716435039347,-445.69133756,0.00031947,2]
[327759357,1716435039357,-500.0,0.00031947,2]
[327759358,1716435039367,-500.0,0.00031947,2]
[327759359,1716435039376,-500.0,0.00031947,2]
[327759360,1716435039387,-500.0,0.00031947,2]
[327759361,1716435039397,-500.0,0.00031947,2]
[327759362,1716435039407,-500.0,0.00031947,2]
[327759363,1716435039418,-500.0,0.00031947,2]
[327759364,1716435039428,-500.0,0.00031947,2]
[327759365,1716435039438,-500.0,0.00031947,2]
[327759366,1716435039448,-500.0,0.00031947,2]
[327759367,1716435039458,-500.0,0.00031947,2]
[327759368,1716435039468,-2000.0,0.00031948,2]
[327759369,1716435039478,-16013.39,0.00031948,3]
[327759370,1716435039488,-19216.07,0.00031958,3]
[327759371,1716435039498,-22646.25629149,0.00031968,11]
[327759372,1716435039508,-31919.07445463,0.00031998,2]
[327759373,1716435040761,-263.65062436,0.00031998,2]
[327759390,1716435043823,-8898.65959483,0.00031998,2]
[327759391,1716435043833,-613.32645073,0.00031998,4]
[327759392,1716435043843,-150.0,0.00032,2]
[327759393,1716435043853,-4567.52255244,0.00032,2]
[327759395,1716435043914,-432.82213956,0.00032,2]
[327759396,1716435043924,-300.0,0.00032,2]
[327759397,1716435043934,-230.19,0.00032,30]
[327759398,1716435043944,-1715.92634972,0.00032,3]
[327759419,1716435049015,-286.08365028,0.00032,3]
[327759420,1716435049025,-379.04509844,0.00032,120]
[327759432,1716435429116,7541.56263498,0.00025,60]
[327759475,1716436027178,-162.61642107,0.00019,2]
[327759476,1716436027199,-3033.22156712,0.00021,2]
[327759492,1716436154172,-14398.17871129,0.00021,2]
[327759493,1716436154195,-1366.99220787,0.00021,2]
[327759530,1716436232101,-3327.88804088,0.00021,2]
[327759531,1716436232111,-226.42806687,0.00021,2]
[327759532,1716436232142,-2773.57193313,0.00021,2]
[327759533,1716436232151,-1589.84293686,0.00021,2]
[327759534,1716436232160,-166.666666,0.00022214,2]
[327759535,1716436232169,-390.44065702,0.000223,2]
[327759536,1716436232178,-24900.0,0.00022669,2]
[327759537,1716436232187,-320.21579387,0.0002277,2]
[327759538,1716436232196,-166.666666,0.00022819,2]
[327759539,1716436232206,-166.666666,0.00023425,2]
[327759540,1716436232215,-166.666666,0.0002403,2]
[327759541,1716436232224,-2067.06566948,0.00024382,2]
[327759542,1716436232234,-163.73318,0.00024384,2]
[327759543,1716436232243,-382.577674,0.00024384,2]
[327759544,1716436232253,-320.21579381,0.0002463,2]
[327759545,1716436232262,-166.666666,0.00024636,2]
[327759546,1716436232272,-11120.41,0.00024989,3]
[327759547,1716436232282,-9267.01,0.00024989,3]
[327759548,1716436232291,-156.97805823,0.00024996,2]
[327759549,1716436232301,-273.05472635,0.00024997,2]
[327759550,1716436232311,-248.24406664,0.00024997,2]
[327759551,1716436232320,-165.80105957,0.00024998,2]
[327759552,1716436232330,-478.45001488,0.00024998,2]
[327759553,1716436232340,-200.02876224,0.00024998,2]
[327759554,1716436232349,-592.91185141,0.00024998,2]
[327759555,1716436232359,-500.0,0.00024998,2]
[327759556,1716436232370,-444.65101991,0.00024998,2]
[327759557,1716436232380,-500.0,0.00024998,2]
[327759558,1716436232389,-500.0,0.00024998,2]
[327759559,1716436232398,-500.0,0.00024998,2]
[327759560,1716436232408,-500.0,0.00024998,2]
[327759561,1716436232417,-500.0,0.00024998,2]
[327759562,1716436232426,-500.0,0.00024998,2]
[327759563,1716436232435,-500.0,0.00024998,2]
[327759564,1716436232446,-500.0,0.00024998,2]
[327759565,1716436232455,-533.70740127,0.00024998,2]
[327759566,1716436232464,-500.0,0.00024998,2]
[327759567,1716436232474,-500.0,0.00024998,2]
[327759568,1716436232492,-500.0,0.00024998,2]
[327759569,1716436232504,-500.0,0.00024998,2]
[327759570,1716436232514,-134.22374292,0.00024998,2]
[327759576,1716436238000,-7722.5,0.00024989,3]